bitfinex-derivatives/quotes_ETHF0:USTF0_20251001
["timestamp","ask_amount","ask_price","bid_price","bid_amount"]
[1759318884727,0.0232,4296.1,4296.0,1.01642]
[1759318884922,0.0232,4296.1,4296.0,1.25242]
[1759318885126,3.2096481,4296.3,4296.2,0.856]
[1759318885323,3.2096481,4296.3,4296.2,1.0164]
[1759318885532,3.4340481,4296.3,4296.2,1.0164]
[1759318885832,3.7548481,4296.3,4296.2,41.8164]
[1759318887822,3.7548481,4296.3,4296.2,41.3976]
[1759318888228,3.7548481,4296.3,4296.2,41.8164]
[1759318889330,3.5304481,4296.3,4296.2,41.8164]
[1759318889732,3.5304481,4296.3,4296.2,42.0524]
[1759318890027,3.5304481,4296.3,4296.2,41.892]
[1759318890433,3.5304481,4296.3,4296.2,42.0524]
[1759318890830,3.5304481,4296.3,4296.2,41.8164]
[1759318891031,3.5304481,4296.3,4296.2,42.0524]
[1759318892332,3.5304481,4296.3,4296.2,41.892]
[1759318892732,3.5304481,4296.3,4296.2,41.2493]
[1759318893039,3.5304481,4296.3,4296.2,41.036]
[1759318893641,3.5304481,4296.3,4296.2,41.4548]
[1759318894138,3.5304481,4296.3,4296.2,40.8]
[1759318894337,3.9792481,4296.3,4296.2,0.236]
[1759318895041,4.3980381,4296.3,4296.2,0.236]
[1759318897035,4.89221266,4296.3,4296.2,0.236]
[1759318897236,0.7396,4296.2,4296.1,40.8]
[1759318897536,1.1884,4296.2,4296.1,0.236]
[1759318897738,0.86761,4296.1,4296.0,0.1862]
[1759318897940,1.18841,4296.1,4296.0,41.2222]
[1759318898140,1.18841,4296.1,4296.0,41.036]
[1759318900542,4.39621,4296.1,4296.0,41.036]
[1759318905754,4.39621,4296.1,4296.0,40.8]
[1759318905954,4.39621,4296.1,4296.0,0.236]
[1759318906156,1.18843,4295.9,4295.8,0.1862]
[1759318906352,1.6829591,4295.9,4295.8,0.4222]
[1759318906555,1.6829591,4295.9,4295.8,0.236]
[1759318907648,1.18846,4295.7,4295.6,0.2133]
[1759318907854,1.2641291,4295.7,4295.6,0.6732]
[1759318908147,1.6829791,4295.7,4295.6,0.6732]
[1759318908455,1.68296434,4295.7,4295.6,0.6732]
[1759318909157,1.68296434,4295.7,4295.6,0.4493]
[1759318910656,1.26411434,4295.7,4295.6,0.4493]
[1759318910852,1.18845,4295.7,4295.6,0.4493]
[1759318911358,0.3208,4295.7,4295.6,1.25246]
[1759318913160,0.0232,4296.0,4295.9,1.01643]
[1759318913357,0.0232,4296.0,4295.9,1.25243]
[1759318913561,3.5455,4296.1,4296.0,0.592]
[1759318913954,3.2078,4296.1,4296.0,0.6276]
[1759318914153,0.1337,4296.5,4296.4,0.41878]
[1759318914358,0.1337,4296.5,4296.4,36.96878]
[1759318914553,0.1337,4296.5,4296.4,41.96878]
[1759318914758,0.1337,4296.5,4296.4,82.76878]
[1759318915153,0.4714,4297.0,4296.9,0.41873]
[1759318915458,0.13614901,4297.0,4296.9,5.65734752]
[1759318917463,0.13614901,4297.0,4296.9,7.53292488]
[1759318917864,0.13614901,4297.0,4296.9,5.65734752]
[1759318918259,0.47384901,4297.0,4296.9,5.65734752]
[1759318918969,0.47384901,4297.0,4296.9,5.60720739]
[1759318919163,0.47384901,4297.0,4296.9,0.65734752]
[1759318921065,0.90894901,4297.0,4296.9,0.00261752]
[1759318921363,0.7728,4295.7,4295.6,3.62666]
[1759318921566,0.7728,4295.7,4295.6,3.86266]
[1759318921762,0.5569,4295.7,4295.6,44.66266]
[1759318922162,0.3377,4295.7,4295.6,44.66497443]
[1759318926170,0.3377,4295.7,4295.6,80.97097443]
[1759318928265,0.1337,4296.0,4295.9,0.41883]
[1759318928567,0.1337,4296.0,4295.9,0.65483]
[1759318929167,0.1337,4296.0,4295.9,41.45483]
[1759318929374,0.1337,4296.5,4296.4,0.41878]
[1759318929568,0.1337,4296.5,4296.4,0.65478]
[1759318930174,0.4714,4296.5,4296.4,0.65478]
[1759318930769,0.1337,4296.5,4296.4,0.65478]
[1759318931165,0.4714,4296.5,4296.4,41.45478]
[1759318931570,0.4714,4296.5,4296.4,40.8]
[1759318931774,0.4714,4296.5,4296.4,41.036]
[1759318931967,0.4714,4296.5,4296.4,41.21878]
[1759318932169,0.4714,4296.5,4296.4,40.8]
[1759318932370,0.4714,4296.5,4296.4,41.036]
[1759318933676,0.4714,4296.5,4296.4,41.45478]
[1759318934477,0.4714,4296.5,4296.4,41.036]
[1759318937080,0.4714,4296.5,4296.4,41.45478]
[1759318943974,0.4714,4296.5,4296.4,41.036]
[1759318944181,0.4714,4296.5,4296.4,41.45478]
[1759318945181,0.4714,4296.5,4296.4,41.036]
[1759318945383,0.4714,4296.5,4296.4,41.45478]
[1759318946879,0.4714,4296.5,4296.4,41.036]
[1759318946880,3.6792,4296.5,4296.4,41.036]
[1759318948086,3.6792,4296.5,4296.4,41.45478]
[1759318948381,3.6792,4296.5,4296.4,41.036]
[1759318949086,3.6792,4296.5,4296.4,40.8]
[1759318949285,3.6792,4296.5,4296.4,42.28020517]
[1759318950387,3.6792,4296.5,4296.4,42.69898517]
[1759318950794,3.6792,4296.5,4296.4,42.28020517]
[1759318951086,3.6792,4296.5,4296.4,42.69898517]
[1759318951282,3.6792,4296.5,4296.4,42.28020517]
[1759318953380,3.6792,4296.5,4296.4,42.69898517]
[1759318953687,3.6792,4296.5,4296.4,42.28020517]
[1759318954185,3.6792,4296.5,4296.4,41.036]
[1759318955088,3.6792,4296.5,4296.4,41.45478]
[1759318955986,3.6792,4296.5,4296.4,41.036]
[1759318956180,3.6792,4296.5,4296.4,41.45478]
[1759318965988,3.6792,4296.5,4296.4,41.036]
[1759318966392,3.6792,4296.5,4296.4,41.45478]
[1759318969696,0.4714,4296.5,4296.4,41.45478]
[1759318974798,0.4714,4296.5,4296.4,41.036]
[1759318974996,0.4714,4296.5,4296.4,40.8]
[1759318975195,0.4714,4296.5,4296.4,41.036]
[1759318976195,0.4714,4296.5,4296.4,41.45478]
[1759318976397,0.4714,4296.5,4296.4,41.21878]
[1759318976596,0.4714,4296.5,4296.4,41.45478]
[1759318978696,0.4714,4296.5,4296.4,41.036]
[1759318979295,0.4714,4296.5,4296.4,41.45478]
[1759318979597,0.4714,4296.5,4296.4,41.036]
[1759318980307,0.4714,4296.5,4296.4,41.45478]
[1759318981500,0.4714,4296.5,4296.4,41.036]
[1759318982106,0.4714,4296.5,4296.4,41.45478]
[1759318985907,0.4714,4296.5,4296.4,41.21878]
[1759318986103,0.4714,4296.5,4296.4,41.45478]
[1759318991326,0.0232,4296.7,4296.6,0.41876]
[1759318991327,0.3556,4296.7,4296.6,0.41876]
[1759318991525,0.3556,4296.7,4296.6,0.65476]
[1759318991721,0.3324,4296.7,4296.6,0.65476]
[1759318994526,0.3324,4296.7,4296.6,5.65476]
[1759318994724,0.3324,4296.7,4296.6,0.236]
[1759318994921,0.549,4296.7,4296.6,0.65476]
[1759318995223,0.3324,4297.4,4296.6,8.4438]
[1759318995433,0.8191931,4297.3,4297.2,0.4187]
[1759318995727,0.3324,4297.3,4297.2,0.236]
[1759318995927,0.3324,4297.3,4297.2,41.036]
[1759318996128,0.3324,4297.3,4297.2,40.8]
[1759318996329,0.3324,4297.3,4297.2,41.036]
[1759318996625,0.33439238,4297.3,4297.2,41.036]
[1759318997026,0.33439238,4297.3,4297.2,42.28224056]
[1759318997932,0.76839238,4297.3,4297.2,1.48224056]
[1759318998429,0.76839238,4297.3,4297.2,41.036]
[1759318999731,0.76839238,4297.3,4297.2,42.28131399]
[1759319000028,0.33439238,4297.3,4297.2,42.28131399]
[1759319000328,0.33439238,4297.3,4297.2,41.036]
[1759319002336,0.33439238,4297.3,4297.2,42.28088664]
[1759319003433,0.33439238,4297.3,4297.2,41.036]
[1759319003833,0.33439238,4297.3,4297.2,42.28083956]
[1759319004135,0.33439238,4297.3,4297.2,41.036]
[1759319010439,0.33439238,4297.3,4297.2,41.4547]
[1759319013245,0.33439238,4297.3,4297.2,40.8]
[1759319013541,0.33439238,4297.3,4297.2,42.69990321]
[1759319016243,0.33439238,4297.3,4297.2,42.28120321]
[1759319016442,0.33439238,4297.3,4297.2,41.036]
[1759319016639,0.33439238,4297.3,4297.2,41.4547]
[1759319017344,0.33439238,4297.3,4297.2,41.036]
[1759319017542,0.33439238,4297.3,4297.2,41.4547]
[1759319018549,0.33439238,4297.3,4297.2,41.036]
[1759319019345,0.74809238,4297.3,4297.2,0.236]
[1759319019546,0.4137,4297.1,4297.0,1.24651928]
[1759319019737,0.4137,4297.1,4297.0,0.236]
[1759319019738,0.7266,4297.1,4297.0,0.236]
[1759319020945,1.14531,4297.1,4297.0,0.236]
[1759319021246,0.7266,4297.1,4297.0,0.236]
[1759319021546,1.14531,4297.1,4297.0,0.236]
[1759319021744,1.26932,4297.0,4296.9,1.24651928]
[1759319022042,0.8506,4296.5,4296.3,1.24651928]
[1759319022250,4.0584,4296.5,4296.4,0.4222]
[1759319022445,4.0584,4296.5,4296.4,0.236]
[1759319023538,0.3129,4296.4,4296.0,40.8]
[1759319023843,0.7266,4296.1,4296.0,40.8]
[1759319024041,0.7266,4296.1,4296.0,41.036]
[1759319024440,0.7266,4296.1,4296.0,40.8]
[1759319024640,1.14545,4295.7,4295.6,0.00231443]
[1759319024942,4.35325,4295.7,4295.6,0.23831443]
[1759319025945,9.35325,4295.7,4295.6,0.00231443]
[1759319026240,9.35325,4295.7,4295.6,0.23831443]
[1759319026445,9.35325,4295.7,4295.6,0.05860728]
[1759319026740,9.35325,4295.7,4295.6,7.28e-06]
[1759319026942,1.26947,4295.5,4295.4,0.1862]
[1759319027140,1.26947,4295.5,4295.4,0.4222]
[1759319027343,1.26947,4295.5,4295.4,0.42467188]
[1759319029040,1.26947,4295.5,4295.4,0.23847188]
[1759319029244,0.2088,4294.2,4293.8,39.44075933]
[1759319029442,0.124,4294.0,4293.9,0.236]
[1759319029835,0.124,4294.0,4293.9,41.036]
[1759319030040,0.4369,4294.0,4293.9,41.45502]
[1759319030241,0.43937819,4294.0,4293.9,41.45768773]
[1759319033640,0.00247819,4294.0,4293.9,44.66548773]
[1759319034348,0.44267819,4294.0,4293.9,44.66548773]
[1759319038246,0.00247819,4294.0,4293.9,49.66548773]
[1759319039237,0.1472,4294.5,4294.0,1.04753]
[1759319039456,0.46,4294.5,4294.4,0.41897]
[1759319039652,0.8904,4294.5,4294.4,0.236]
[1759319039854,0.4402,4294.0,4293.9,3.21046773]
[1759319040049,0.4402,4294.0,4293.9,39.76446773]
[1759319040252,0.44297482,4294.0,4293.9,40.18348773]
[1759319040550,0.44297482,4294.0,4293.9,80.98348773]
[1759319041350,0.44297482,4294.0,4293.9,44.42948773]
[1759319041551,0.44297482,4294.0,4293.9,80.98448773]
[1759319044658,0.44297482,4294.0,4293.9,44.42948773]
[1759319044859,0.44297482,4294.0,4293.9,41.45768773]
[1759319049056,0.1472,4294.5,4294.4,0.41897]
[1759319049261,0.1472,4294.5,4294.4,0.65497]
[1759319049460,0.124,4294.5,4294.4,0.65497]
[1759319050264,0.12665689,4294.5,4294.4,0.65497]
[1759319051165,0.43945689,4294.5,4294.4,0.65497]
[1759319054270,0.336,4294.9,4294.5,1.0474]
[1759319054568,0.0232,4294.9,4294.6,0.236]
[1759319054767,0.3128,4294.8,4294.7,0.41895]
[1759319054961,0.3128,4294.8,4294.7,41.45495]
[1759319055461,0.31453873,4294.8,4294.7,41.45495]
[1759319058763,0.31453873,4294.8,4294.7,44.66275]
[1759319060260,0.00173873,4294.8,4294.7,44.66275]
[1759319060572,0.32693873,4294.8,4294.7,44.66275]
[1759319060972,0.32693873,4294.8,4294.7,80.98275]
[1759319062973,0.00173873,4294.8,4294.7,80.98275]
[1759319063871,0.32523873,4294.8,4294.7,80.98275]
[1759319064775,0.00173873,4294.8,4294.7,80.98275]
[1759319065374,0.32523873,4294.8,4294.7,80.98275]
[1759319067675,0.32523873,4294.8,4294.7,44.2438]
[1759319068375,0.32523873,4294.8,4294.7,44.42675]
[1759319068576,0.32523873,4294.8,4294.7,44.66275]
[1759319069676,0.32523873,4294.8,4294.7,44.2438]
[1759319069875,0.32523873,4294.8,4294.7,41.036]
[1759319070074,0.32523873,4294.8,4294.7,40.8]
[1759319070275,0.32523873,4294.8,4294.7,41.036]
[1759319071077,0.32523873,4294.8,4294.7,41.45495]
[1759319073971,0.32523873,4294.8,4294.7,41.21895]
[1759319074174,0.32523873,4294.8,4294.7,41.45495]
[1759319076980,0.00173873,4294.8,4294.7,41.45495]
[1759319078477,0.0232,4295.0,4294.9,0.41893]
[1759319078683,0.0232,4295.0,4294.9,0.65493]
[1759319078884,0.3235,4295.4,4295.3,0.41889]
[1759319079076,0.3235,4295.4,4295.3,0.65489]
[1759319079477,0.32618372,4295.4,4295.3,41.45489]
[1759319080480,0.00268372,4295.4,4295.3,41.45489]
[1759319082377,0.32618372,4295.4,4295.3,41.45489]
[1759319084981,0.32618372,4295.4,4295.3,41.21889]
[1759319085182,0.32618372,4295.4,4295.3,41.45489]
[1759319092086,0.00268372,4295.4,4295.3,41.45489]
[1759319093084,0.32618372,4295.4,4295.3,41.45489]
[1759319093590,0.33058372,4295.4,4295.3,41.45489]
[1759319094290,0.33058372,4295.4,4295.3,41.21889]
[1759319094493,0.33058372,4295.4,4295.3,41.036]
[1759319094684,0.33058372,4295.4,4295.3,41.45489]
[1759319094994,0.33058372,4295.4,4295.3,41.036]
[1759319100294,5.74946372,4295.4,4295.3,41.036]
[1759319100491,0.4189,4295.2,4295.1,1.43373443]
[1759319100686,0.7557,4295.2,4295.1,0.4222]
[1759319100991,0.7557,4295.2,4295.1,41.036]
[1759319101580,0.7557,4295.2,4294.9,1.24753443]
[1759319101581,0.8839,4295.0,4294.9,1.24753443]
[1759319101787,0.8839,4295.0,4294.9,0.236]
[1759319102587,0.8839,4295.0,4294.9,41.036]
[1759319103991,0.6664,4295.0,4294.9,41.036]
[1759319104186,0.6664,4295.0,4294.9,40.8]
[1759319104386,0.6664,4295.0,4294.9,0.236]
[1759319105393,0.6664,4295.0,4294.9,41.036]
[1759319106687,0.4561,4295.0,4294.9,41.036]
[1759319106892,0.3511,4295.2,4295.0,0.41892]
[1759319107200,0.0232,4295.2,4295.1,0.236]
[1759319107593,0.3511,4295.2,4295.1,0.236]
[1759319107797,0.3511,4295.2,4295.1,41.036]
[1759319107996,0.3511,4295.2,4295.1,40.8]
[1759319108193,0.3511,4295.2,4295.1,41.036]
[1759319108395,0.3279,4295.2,4295.1,41.036]
[1759319109895,0.3279,4295.2,4295.1,40.8]
[1759319110203,0.3279,4295.2,4295.1,41.036]
[1759319114302,0.3279,4295.2,4295.1,41.45491]
[1759319114492,0.3279,4295.2,4295.1,41.036]
[1759319114696,0.3279,4295.2,4295.1,41.45491]
[1759319114899,0.3279,4295.2,4295.1,41.036]
[1759319115602,0.7468,4295.2,4295.1,40.8]
[1759319115905,0.5382,4295.2,4295.1,0.236]
[1759319116105,0.7557,4295.2,4295.1,0.236]
[1759319116403,0.41891,4295.1,4295.0,40.8]
[1759319116705,0.74681,4295.1,4295.0,41.036]
[1759319118404,1.17461,4295.1,4295.0,0.236]
[1759319118705,0.41893,4295.0,4294.7,0.1862]
[1759319118907,3.9635,4294.8,4294.7,0.1862]
[1759319119105,3.9635,4294.8,4294.7,0.4222]
[1759319119298,3.9635,4294.8,4294.7,0.65495]
[1759319120600,3.9635,4294.8,4294.7,0.236]
[1759319121804,0.2249,4294.4,4294.3,1.66650443]
[1759319122006,0.5635,4294.4,4294.3,1.24753443]
[1759319122308,0.7697,4294.4,4294.3,1.48353443]
[1759319122810,0.7697,4294.4,4294.3,0.65498]
[1759319123904,0.7697,4294.4,4294.3,0.41898]
[1759319124104,0.7697,4294.4,4294.3,0.236]
[1759319124705,0.3132,4294.3,4294.2,41.21899]
[1759319125002,0.3132,4294.3,4294.2,41.036]
[1759319126005,3.521,4294.3,4294.2,41.036]
[1759319126203,3.521,4294.3,4294.2,42.28446127]
[1759319128608,1.15539,4294.2,4294.1,0.236]
[1759319129513,0.85861,4294.0,4293.9,40.80266773]
[1759319129809,0.85861,4294.0,4293.9,41.03866773]
[1759319130008,1.28181,4294.0,4293.9,0.23866773]
[1759319130802,1.28181,4294.0,4293.9,0.00266773]
[1759319131000,1.28181,4294.0,4293.9,0.23866773]
[1759319132219,0.8628,4294.0,4293.9,0.65768773]
[1759319132513,0.4396,4294.0,4293.9,0.65768773]
[1759319134018,0.8628,4294.0,4293.9,0.42168773]
[1759319134313,0.8628,4294.0,4293.9,0.65768773]
[1759319134806,3.2078,4294.3,4293.9,0.65768773]
[1759319135008,3.2078,4294.3,4294.2,0.41899]
[1759319135312,3.2078,4294.3,4294.2,0.65499]
[1759319135502,3.521,4294.3,4294.2,0.65499]
[1759319136311,3.521,4294.3,4294.2,1.90345127]
[1759319136512,3.521,4294.3,4294.2,1.48446127]
[1759319136716,0.3132,4294.2,4294.1,0.419]
[1759319136905,0.3132,4294.2,4294.1,0.655]
[1759319141210,0.1496,4294.5,4294.1,0.236]
[1759319141211,0.3132,4294.4,4294.1,0.236]
[1759319141512,0.5213,4294.4,4294.1,0.236]
[1759319141818,0.3132,4294.3,4294.1,0.236]
[1759319142419,0.3132,4294.3,4294.2,0.41899]
[1759319143114,0.0232,4294.5,4294.4,0.41897]
[1759319143312,0.0232,4294.5,4294.4,0.65497]
[1759319143614,3.2078,4294.8,4294.7,0.41895]
[1759319143819,3.7291,4294.8,4294.6,0.41895]
[1759319144120,3.631,4294.8,4294.7,0.65495]
[1759319144415,3.631,4294.8,4294.7,41.45495]
[1759319144718,3.9442,4294.8,4294.7,41.45495]
[1759319145314,3.7291,4294.8,4294.7,41.45495]
[1759319146012,3.2078,4294.8,4294.7,41.45495]
[1759319146213,0.3132,4295.3,4295.2,0.4189]
[1759319146418,0.3132,4295.3,4295.2,1.90182857]
[1759319146618,0.5213,4295.3,4295.2,1.90182857]
[1759319147116,0.3132,4295.3,4295.2,1.90182857]
[1759319147321,0.3132,4295.3,4295.2,0.6549]
[1759319147618,0.3132,4295.3,4295.2,41.4549]
[1759319147817,0.3132,4295.3,4295.2,40.8]
[1759319148019,0.3132,4295.3,4295.2,41.4549]
[1759319150618,0.3132,4295.3,4295.2,41.64070255]
[1759319152126,0.3132,4295.3,4295.2,41.036]
[1759319152325,0.3132,4295.3,4295.2,42.04553725]
[1759319152626,0.4232,4295.1,4295.0,0.1862]
[1759319152822,0.7364,4295.1,4295.0,0.4222]
[1759319153023,0.7364,4295.1,4295.0,40.8]
[1759319153223,0.7364,4295.1,4295.0,41.036]
[1759319154621,0.7364,4295.1,4295.0,40.8]
[1759319154924,0.7364,4295.1,4295.0,41.45492]
[1759319155222,0.5213,4295.1,4295.0,41.45492]
[1759319155724,3.53438372,4295.4,4295.3,0.41889]
[1759319155913,3.74848372,4295.4,4295.3,0.65489]
[1759319156521,3.97338372,4295.4,4295.3,0.65489]
[1759319157026,3.97338372,4295.4,4295.3,0.236]
[1759319157227,3.97338372,4295.4,4295.3,0.65489]
[1759319157525,3.97338372,4295.4,4295.3,0.236]
[1759319158028,3.97338372,4295.4,4295.3,0.65489]
[1759319159323,3.53438372,4295.4,4295.3,0.65489]
[1759319160035,3.97338372,4295.4,4295.3,0.65489]
[1759319160428,3.97338372,4295.4,4295.3,0.236]
[1759319161135,3.64948372,4295.4,4295.3,0.236]
[1759319161735,3.97338372,4295.4,4295.3,0.236]
[1759319162430,3.97338372,4295.4,4295.3,0.65489]
[1759319163032,3.74848372,4295.4,4295.3,0.65489]
[1759319163338,3.74848372,4295.4,4295.3,1.90042725]
[1759319164433,3.97338372,4295.4,4295.3,1.90042725]
[1759319164639,3.97338372,4295.4,4295.3,1.48153725]
[1759319165439,3.97338372,4295.4,4295.3,0.236]
[1759319166542,3.97338372,4295.4,4295.3,0.235]
[1759319166740,0.7629,4295.3,4295.2,1.24849496]
[1759319167038,0.7629,4295.3,4295.2,1.48349496]
[1759319167937,0.7629,4295.3,4295.2,0.235]
[1759319168144,0.7629,4295.3,4295.2,0.6539]
[1759319171243,0.7629,4295.3,4295.2,0.235]
[1759319172246,0.7629,4295.3,4295.2,0.6539]
[1759319172944,0.7629,4295.3,4295.2,0.235]
[1759319174638,0.439,4295.3,4295.2,0.235]
[1759319175044,0.439,4295.3,4295.2,0.6539]
[1759319175240,0.7629,4295.3,4295.2,0.6539]
[1759319175445,0.3239,4295.3,4295.2,0.6539]
[1759319176044,0.3239,4295.3,4295.2,41.4539]
[1759319176842,0.00268372,4295.4,4295.3,0.41889]
[1759319177437,0.32658372,4295.4,4295.3,41.21889]
[1759319180852,0.32658372,4295.4,4295.3,41.45389]
[1759319181753,0.32658372,4295.4,4295.3,43.11479679]
[1759319182245,0.00268372,4295.4,4295.3,41.45389]
[1759319184242,0.00268372,4295.4,4295.3,46.45389]
[1759319185755,0.3123,4296.3,4296.2,0.4188]
[1759319185956,0.3123,4296.3,4296.2,0.6538]
[1759319186458,0.3123,4296.8,4296.7,0.41875]
[1759319186653,0.31442741,4296.8,4296.7,0.65375]
[1759319186955,0.31442741,4296.8,4296.7,41.45375]
[1759319187556,0.00212741,4296.8,4296.7,41.45375]
[1759319188656,0.31442741,4296.8,4296.7,41.45375]
[1759319188856,0.31442741,4296.8,4296.7,41.21875]
[1759319189061,0.31442741,4296.8,4296.7,77.76475]
[1759319195656,0.31442741,4296.8,4296.7,42.46151635]
[1759319195860,0.31442741,4296.8,4296.7,79.00151635]
[1759319198465,0.31442741,4296.8,4296.7,42.46151635]
[1759319198962,0.31442741,4296.8,4296.7,79.00051635]
[1759319199958,0.31442741,4296.8,4296.7,41.45375]
[1759319201362,0.31442741,4296.8,4296.7,40.8]
[1759319201566,0.31442741,4296.8,4296.7,41.035]
[1759319201864,0.31442741,4296.8,4296.7,41.45375]
[1759319202560,0.31442741,4296.8,4296.7,41.035]
[1759319203267,0.31442741,4296.8,4296.7,41.45375]
[1759319204470,0.31442741,4296.8,4296.7,42.69651635]
[1759319206362,0.31442741,4296.8,4296.7,41.45375]
[1759319207570,0.31442741,4296.8,4296.7,41.035]
[1759319208273,0.31442741,4296.8,4296.7,40.8]
[1759319208566,0.31442741,4296.8,4296.7,41.035]
[1759319208966,0.31442741,4296.8,4296.7,41.45375]
[1759319209162,0.00212741,4296.8,4296.7,41.45375]
[1759319209963,0.31442741,4296.8,4296.7,40.8]
[1759319210163,0.31442741,4296.8,4296.7,42.28069474]
[1759319210867,0.31442741,4296.8,4296.7,42.04569474]
[1759319211061,0.31442741,4296.8,4296.7,42.28069474]
[1759319211370,0.31442741,4296.8,4296.7,41.035]
[1759319211770,0.31442741,4296.8,4296.7,42.28187696]
[1759319211964,0.31442741,4296.8,4296.7,42.04687696]
[1759319212172,5.31442741,4296.8,4296.7,41.035]
[1759319212966,5.31442741,4296.8,4296.7,40.8]
[1759319212967,5.73316741,4296.8,4296.7,40.8]
[1759319213168,0.7252,4296.6,4296.5,0.1861]
[1759319213468,3.933,4296.6,4296.5,0.235]
[1759319213673,3.933,4296.6,4296.5,41.035]
[1759319213873,4.35176,4296.6,4296.5,41.035]
[1759319215370,1.18999,4296.3,4296.2,1.24687696]
[1759319215567,0.86481,4296.1,4295.9,1.24687696]
[1759319215775,0.7712,4295.7,4295.6,1.24687696]
[1759319215967,0.7712,4295.7,4295.6,1.48187696]
[1759319216170,0.7712,4295.7,4295.6,0.235]
[1759319216376,0.7712,4295.4,4294.7,1.66310825]
[1759319216563,0.72847,4294.5,4294.1,0.3246]
[1759319216767,0.446,4294.2,4294.1,0.7376]
[1759319217074,0.446,4294.2,4294.1,0.9746]
[1759319217275,5.446,4294.2,4294.1,0.9746]
[1759319217476,3.2078,4294.3,4294.2,0.3246]
[1759319217671,3.2078,4294.3,4294.2,0.7376]
[1759319218778,0.86493,4294.9,4294.8,0.5306]
[1759319218978,0.86493,4294.9,4294.8,0.7676]
[1759319219280,1.17443,4294.9,4294.8,0.7676]
[1759319219869,1.17443,4294.9,4294.8,0.5616]
[1759319220164,1.17443,4294.9,4294.8,0.237]
[1759319220574,0.7555,4294.7,4294.6,0.3246]
[1759319220774,0.7555,4294.7,4294.6,0.7676]
[1759319221972,0.446,4294.7,4294.6,0.9746]
[1759319226987,0.41894,4294.8,4294.7,0.7376]
[1759319227778,3.62672,4295.0,4294.9,0.413]
[1759319227982,3.62672,4295.0,4294.9,0.7376]
[1759319228681,3.85162,4295.0,4294.9,0.7376]
[1759319229887,3.62672,4295.0,4294.9,0.7376]
[1759319230680,3.2078,4295.0,4294.9,0.7376]
[1759319230887,3.62672,4295.0,4294.9,0.7376]
[1759319231488,3.4327,4295.0,4294.9,0.7376]
[1759319231782,3.85162,4295.0,4294.9,41.5376]
[1759319232091,3.2078,4295.0,4294.9,41.5376]
[1759319232589,3.2078,4295.0,4294.9,41.95653]
[1759319233992,3.2078,4295.0,4294.9,41.5376]
[1759319234385,3.2078,4295.0,4294.9,41.95653]
[1759319234996,3.2078,4295.0,4294.9,41.5376]
[1759319237385,3.62672,4295.0,4294.9,41.5376]
[1759319237586,3.93622,4295.0,4294.9,40.8]
[1759319237797,4.38222,4295.0,4294.9,0.236]
[1759319237996,4.38222,4295.0,4294.9,0.5606]
[1759319239297,4.38222,4295.0,4294.9,0.3246]
[1759319239498,4.38222,4295.0,4294.9,0.5606]
[1759319239694,3.2078,4295.0,4294.9,0.9914]
[1759319240788,4.07162,4295.0,4294.9,0.9914]
[1759319240992,4.38112,4295.0,4294.9,0.9914]
[1759319242095,3.9622,4295.0,4294.9,0.9914]
[1759319242497,3.6527,4295.0,4294.9,0.9914]
[1759319245509,0.2288,4295.3,4295.2,0.4377]
[1759319245799,0.4226,4295.3,4295.2,1.001]
[1759319246001,3.2078,4295.5,4295.3,0.74618]
[1759319246202,3.2078,4295.5,4295.4,0.765]
[1759319246597,3.2078,4295.5,4295.4,41.565]
[1759319247296,3.93627,4295.5,4295.4,41.565]
[1759319247608,3.93627,4295.5,4295.4,41.3519]
[1759319250008,3.93627,4295.5,4295.4,41.5879]
[1759319251008,3.5174,4295.5,4295.4,41.5879]
[1759319251613,3.2078,4295.5,4295.4,42.00678]
[1759319251812,3.2078,4295.5,4295.4,41.5879]
[1759319252310,3.2078,4295.5,4295.4,42.00678]
[1759319252508,3.2078,4295.5,4295.4,43.25013216]
[1759319253814,3.2078,4295.5,4295.4,42.83125216]
[1759319254214,3.2078,4295.5,4295.4,43.25013216]
[1759319254613,3.2078,4295.5,4295.4,42.83125216]
[1759319255614,3.2078,4295.5,4295.4,42.00678]
[1759319256013,3.2078,4295.5,4295.4,41.5879]
[1759319258113,3.2078,4295.5,4295.4,42.00678]
[1759319258820,3.2078,4295.5,4295.4,47.00678]
[1759319259516,3.2078,4296.0,4295.9,0.5519]
[1759319259817,3.2078,4296.0,4295.9,1.001]
[1759319261414,3.4134,4296.0,4295.9,1.001]
[1759319262218,3.2078,4296.0,4295.9,1.001]
[1759319262417,3.2078,4296.0,4295.9,1.41983]
[1759319262616,3.2078,4296.0,4295.9,2.66951012]
[1759319262817,3.2078,4296.0,4295.9,1.41983]
[1759319263523,0.0232,4296.3,4296.2,1.1838]
[1759319263717,0.0232,4296.3,4296.2,1.4198]
[1759319264022,3.2078,4296.6,4296.5,1.31797]
[1759319264218,3.2078,4296.6,4296.5,42.35397]
[1759319266326,3.2078,4296.6,4296.5,43.60220374]
[1759319266524,3.2078,4296.6,4296.5,42.35397]
[1759319267221,3.2078,4296.6,4296.5,43.6005107]
[1759319268119,0.02532741,4296.8,4296.7,0.41875]
[1759319268323,0.02532741,4296.8,4296.7,1.41975]
[1759319268527,0.02532741,4296.8,4296.7,1.001]
[1759319269425,0.02532741,4296.8,4296.7,1.41975]
[1759319269626,0.00212741,4296.8,4296.7,1.41975]
[1759319271127,0.00212741,4296.8,4296.7,7.6658885]
[1759319271327,0.00212741,4296.8,4296.7,48.4658885]
[1759319271529,0.00212741,4296.8,4296.7,47.21975]
[1759319274530,0.00212741,4296.8,4296.7,42.21975]
[1759319274835,0.00212741,4296.8,4296.7,45.42755]